bitfinex/quotes_SOLUSD_20240708
["timestamp","ask_amount","ask_price","bid_price","bid_amount"]
[1720469673290,1.46609579,138.62,138.49,0.04005091]
[1720469673497,1.46609579,138.59,138.49,100.04005091]
[1720469673674,1.46609579,138.59,138.5,20.0]
[1720469673974,1.46609579,138.59,138.51,100.0]
[1720469674179,1.46609579,138.63,138.52,20.0]
[1720469674483,1.46609579,138.61,138.52,20.0]
[1720469674698,1.46609579,138.61,138.5,0.17]
[1720469674997,1.46609579,138.59,138.49,100.04005091]
[1720469675182,0.17,138.66,138.49,100.04005091]
[1720469675183,1.46609579,138.57,138.49,0.04005091]
[1720469675497,1.46609579,138.5,138.49,0.04005091]
[1720469675997,1.46609579,138.52,138.49,0.04005091]
[1720469676381,1.46609579,138.54,138.49,0.04005091]
[1720469676979,1.46609579,138.54,138.53,7.2186]
[1720469677398,1.46609579,138.54,138.51,7.2195]
[1720469677602,1.46609579,138.52,138.49,0.04005091]
[1720469677895,1.46609579,138.52,138.39,100.0]
[1720469677896,1.46609579,138.48,138.46,7.2222]
[1720469678205,1.46609579,138.48,138.39,100.0]
[1720469678402,1.46609579,138.5,138.39,100.0]
[1720469678707,1.46609579,138.5,138.4,121.72]
[1720469678907,1.46609579,138.52,138.44,100.0]
[1720469679081,1.46609579,138.52,138.46,100.0]
[1720469679279,1.46609579,138.52,138.47,20.0]
[1720469679479,1.46609579,138.52,138.39,100.0]
[1720469679675,1.46609579,138.47,138.39,100.0]
[1720469679905,1.46609579,138.47,138.37,100.0]
[1720469680106,1.46609579,138.49,138.37,100.0]
[1720469680487,1.46609579,138.46,138.39,100.0]
[1720469680687,1.46609579,138.46,138.37,100.0]
[1720469681409,1.46609579,138.46,138.36,6.3429]
[1720469681591,1.46609579,138.44,138.37,100.0]
[1720469682382,1.46609579,138.44,138.4,100.0]
[1720469682707,1.46609579,138.44,138.37,100.0]
[1720469683720,1.46609579,138.42,138.31,100.0]
[1720469684004,1.46609579,138.42,138.28,38.36390421]
[1720469684005,1.46609579,138.45,138.3,200.0]
[1720469684181,1.46609579,138.41,138.33,100.0]
[1720469685401,1.46609579,138.49,138.36,100.0]
[1720469685712,1.46609579,138.49,138.4,100.0]
[1720469685925,1.46609579,138.49,138.41,0.17]
[1720469686510,1.46609579,138.49,138.41,0.34]
[1720469686712,1.46609579,138.64,138.49,0.17]
[1720469687019,1.46609579,138.64,138.5,100.0]
[1720469687315,1.46609579,138.64,138.45,141.37810421]
[1720469687316,1.46609579,138.75,138.59,0.17]
[1720469687489,1.46609579,138.75,138.58,100.0]
[1720469687490,19.48519579,138.75,138.58,100.0]
[1720469687806,1.46609579,138.71,138.59,20.0]
[1720469688043,7.2103,138.69,138.59,20.0]
[1720469688206,18.0191,138.75,138.57,100.34]
[1720469688207,8.67699579,138.68,138.58,20.0]
[1720469688398,1.46609579,138.66,138.58,0.17]
[1720469688719,1.46609579,138.62,138.46,100.0]
[1720469688898,1.46609579,138.62,138.44,24.83]
[1720469689101,7.2145,138.61,138.46,100.0]
[1720469689409,1.63609579,138.59,138.45,106.1242]
[1720469689611,20.0,138.6,138.46,100.0]
[1720469689812,1.46609579,138.59,138.47,100.0]
[1720469690116,1.46609579,138.61,138.51,0.17]
[1720469690411,36.22752811,138.77,138.51,0.17]
[1720469690412,7.2084,138.73,138.58,24.83]
[1720469690618,3.46659579,138.79,138.59,20.0]
[1720469690619,36.0356,138.76,138.59,20.0]
[1720469690913,36.0356,138.76,138.53,13.53390421]
[1720469690914,1.46609579,138.69,138.53,100.0]
[1720469691114,1.46609579,138.65,138.54,20.0]
[1720469691318,1.46609579,138.62,138.54,20.0]
[1720469691695,0.17,138.61,138.49,20.0]
[1720469692105,0.17,138.61,138.5,100.0]
[1720469692406,28.29659579,138.79,138.56,100.0]
[1720469692608,1.46609579,138.71,138.54,24.83]
[1720469692801,1.46609579,138.71,138.52,100.0]
[1720469693014,24.83,138.75,138.48,124.83]
[1720469693015,1.46609579,138.69,138.48,124.83]
[1720469693194,7.2117,138.67,138.5,100.0]
[1720469693521,1.46609579,138.69,138.48,124.83]
[1720469693522,1.46609579,138.69,138.54,0.17]
[1720469693824,1.46609579,138.69,138.54,0.34]
[1720469693825,7.2104,138.69,138.54,0.34]
[1720469694031,1.46609579,138.68,138.54,0.34]
[1720469694326,7.2097,138.71,138.57,0.17]
[1720469694520,1.46609579,138.73,138.57,20.0]
[1720469694721,7.2093,138.71,138.58,100.0]
[1720469694929,1.46609579,138.69,138.59,20.0]
[1720469695224,1.46609579,138.67,138.57,20.0]
[1720469695396,1.46609579,138.63,138.57,20.0]
[1720469695594,0.17,138.62,138.5,100.0]
[1720469695799,0.17,138.62,138.45,19.65810421]
[1720469695800,0.17,138.62,138.47,100.0]
[1720469696000,1.46609579,138.63,138.47,2.892415]
[1720469696230,0.34,138.62,138.47,102.892415]
[1720469696898,0.34,138.62,138.5,100.0]
[1720469697920,1.46609579,138.63,138.48,46.55]
[1720469698226,1.46609579,138.63,138.51,0.17]
[1720469698403,0.04,138.62,138.51,20.0]
[1720469698807,1.46609579,138.61,138.48,24.83]
[1720469699031,0.04,138.62,138.5,100.0]
[1720469699208,7.254,138.62,138.48,24.83]
[1720469699403,0.17,138.6,138.47,100.0]
[1720469699625,0.04,138.62,138.5,100.0]
[1720469700332,0.21,138.62,138.48,24.83]
[1720469700538,1.46609579,138.61,138.48,0.17]
[1720469700701,0.21,138.62,138.48,41.89]
[1720469700903,0.04,138.62,138.51,121.89]
[1720469701117,0.04,138.62,138.53,0.17]
[1720469701515,0.04,138.62,138.47,100.0]
[1720469701516,1.46609579,138.58,138.47,100.0]
[1720469701721,1.46609579,138.52,138.47,100.0]
[1720469701900,1.46609579,138.52,138.45,6.1242]
[1720469701901,1.46609579,138.52,138.41,16.2158]
[1720469702097,1.46609579,138.47,138.37,6.5064]
[1720469702324,1.46609579,138.47,138.37,128.2264]
[1720469702516,1.46609579,138.51,138.42,100.0]
[1720469702716,1.46609579,138.51,138.44,100.0]
[1720469702904,1.46609579,138.51,138.37,131.3364]
[1720469703237,24.83,138.61,138.37,131.3364]
[1720469703238,1.46609579,138.59,138.47,100.0]
[1720469703399,0.04,138.62,138.45,24.83]
[1720469703400,0.04,138.62,138.46,121.72]
[1720469703600,0.04,138.62,138.5,21.72]
[1720469703830,0.04,138.62,138.52,100.0]
[1720469704130,0.04,138.62,138.53,44.83]
[1720469704423,0.04,138.62,138.54,100.34]
[1720469704602,0.04,138.62,138.54,0.34]
[1720469705006,0.04,138.62,138.53,20.0]
[1720469705330,1.46609579,138.59,138.46,100.0]
[1720469705530,1.46609579,138.56,138.46,100.0]
[1720469705701,1.46609579,138.56,138.44,24.83]
[1720469706097,1.46609579,138.56,138.44,124.83]
[1720469706323,1.46609579,138.56,138.45,200.0]
[1720469706533,1.46609579,138.56,138.5,100.0]
[1720469706733,1.46609579,138.54,138.44,24.83]
[1720469706943,1.46609579,138.54,138.44,100.0]
[1720469707129,1.46609579,138.54,138.42,100.0]
[1720469707329,1.46609579,138.54,138.38,7.23]
[1720469707330,1.46609579,138.5,138.38,100.0]
[1720469707640,0.17,138.5,138.38,100.0]
[1720469707820,0.34,138.5,138.38,100.0]
[1720469708021,0.17,138.53,138.34,7.23]
[1720469708231,1.46609579,138.51,138.35,24.83]
[1720469708543,1.46609579,138.55,138.43,100.0]
[1720469708917,1.46609579,138.55,138.45,121.72]
[1720469709150,1.46609579,138.57,138.5,100.0]
[1720469709449,1.46609579,138.57,138.51,0.17]
[1720469709633,1.46609579,138.57,138.51,20.34]
[1720469710144,0.04,138.62,138.52,0.17]
[1720469710447,0.04,138.62,138.55,100.0]
[1720469710621,7.2541,138.62,138.52,0.17]
[1720469710932,0.04,138.62,138.53,0.17]
[1720469711351,1.46609579,138.57,138.49,0.17]
[1720469711644,1.46609579,138.53,138.49,0.17]
[1720469711809,0.04,138.62,138.49,0.17]
[1720469711810,7.2539,138.62,138.5,100.0]
[1720469712012,7.2539,138.62,138.51,20.0]
[1720469712328,0.04,138.62,138.52,100.17]
[1720469712533,0.04,138.62,138.53,20.0]
[1720469712839,1.46609579,138.56,138.53,20.0]
[1720469713047,1.46609579,138.58,138.53,20.0]
[1720469713241,0.04,138.62,138.47,24.83]
[1720469713242,0.04,138.62,138.5,0.17]
[1720469713443,0.04,138.62,138.5,100.34]
[1720469713626,0.38,138.62,138.51,20.0]
[1720469713944,0.04,138.62,138.52,0.34]
[1720469714332,0.04,138.62,138.56,0.17]
[1720469714531,7.2145,138.61,138.53,0.17]
[1720469714829,0.04,138.62,138.53,0.17]
[1720469715035,1.46609579,138.61,138.53,0.17]
[1720469715236,0.04,138.62,138.53,0.17]
[1720469715848,0.04,138.62,138.53,20.17]
[1720469716055,0.04,138.62,138.54,0.17]
[1720469716239,1.46609579,138.6,138.54,0.17]
[1720469716547,1.46609579,138.6,138.5,100.0]
[1720469716548,1.46609579,138.6,138.52,0.17]
[1720469716732,1.46609579,138.6,138.52,0.34]
[1720469717056,0.04,138.62,138.52,0.34]
[1720469717057,1.50609579,138.62,138.56,0.17]
[1720469717263,1.50609579,138.62,138.56,20.34]
[1720469717745,1.50609579,138.62,138.56,20.0]
[1720469717954,1.50609579,138.62,138.51,100.17]
[1720469718261,1.50609579,138.62,138.53,0.17]
[1720469718832,1.50609579,138.62,138.53,100.17]
[1720469719025,1.50609579,138.62,138.54,20.0]
[1720469720160,1.50609579,138.62,138.55,0.17]
[1720469720451,1.50609579,138.62,138.49,113.53390421]
[1720469720649,1.50609579,138.62,138.53,100.0]
[1720469720650,1.46609579,138.59,138.53,100.0]
[1720469720855,1.50609579,138.62,138.53,100.0]
[1720469721245,1.50609579,138.62,138.52,0.17]
[1720469721246,1.50609579,138.62,138.54,0.17]
[1720469721556,1.50609579,138.62,138.53,100.0]
[1720469721758,1.50609579,138.62,138.54,20.0]
[1720469722063,1.50609579,138.62,138.54,20.17]
[1720469722561,0.04,138.62,138.59,24.83]
[1720469722751,0.04,138.62,138.6,20.17]
[1720469723261,0.04,138.62,138.6,20.0]
[1720469723458,0.04,138.62,138.59,20.34]
[1720469723651,0.04,138.62,138.59,20.0]
[1720469725445,0.04,138.62,138.6,100.34]
[1720469725652,0.04,138.62,138.61,20.17]
[1720469725958,0.04,138.62,138.61,20.0]
[1720469726170,0.04,138.62,138.58,20.0]
[1720469726348,1.46609579,138.61,138.58,20.0]
[1720469726660,1.46609579,138.61,138.54,15.1411]
[1720469726868,0.04,138.62,138.54,115.1411]
[1720469727050,0.04,138.62,138.59,100.0]
[1720469727252,0.04,138.62,138.54,36.8611]
[1720469727253,0.04,138.62,138.54,15.1411]
[1720469727447,1.50609579,138.62,138.54,15.1411]
[1720469727766,0.04,138.62,138.55,100.0]
[1720469727965,0.04,138.62,138.56,20.0]
[1720469728145,0.04,138.62,138.54,15.1411]
[1720469728339,0.04,138.62,138.54,115.1411]
[1720469728539,0.04,138.62,138.54,15.1411]
[1720469728973,0.04,138.62,138.57,100.0]
[1720469729168,0.04,138.62,138.59,100.0]
[1720469729464,0.04,138.62,138.58,0.17]
[1720469729667,0.04,138.62,138.61,0.17]
[1720469729847,0.04,138.62,138.61,100.17]
[1720469730047,0.04,138.62,138.61,120.34]
[1720469730267,0.04,138.62,138.61,20.34]
[1720469730474,0.04,138.62,138.61,120.34]
[1720469730947,8.67239579,138.77,138.64,0.17]
[1720469731147,7.2068,138.76,138.64,20.34]
[1720469731469,1.46609579,138.77,138.64,20.34]
[1720469731670,8.67219579,138.77,138.64,20.34]
[1720469731870,1.46609579,138.77,138.64,120.34]
[1720469732068,1.46609579,138.77,138.67,0.17]
[1720469732251,1.46609579,138.74,138.67,20.0]
[1720469732575,1.46609579,138.72,138.67,20.0]
[1720469732747,1.46609579,138.74,138.66,20.17]
[1720469732949,1.46609579,138.64,138.52,6.4254]
[1720469733169,1.46609579,138.71,138.58,100.0]
[1720469733373,1.46609579,138.71,138.56,100.0]
[1720469733374,0.17,138.7,138.56,100.0]
[1720469733551,1.46609579,138.67,138.56,100.0]
[1720469733879,1.46609579,138.71,138.57,100.0]
[1720469734047,1.46609579,138.75,138.6,100.0]
[1720469734250,7.2067,138.76,138.62,100.0]
[1720469734560,7.2068,138.76,138.61,0.17]
[1720469734747,8.67329579,138.75,138.61,20.17]
[1720469734952,7.2077,138.74,138.61,20.17]
[1720469735168,7.2077,138.74,138.63,0.17]
[1720469735347,9.01339579,138.75,138.63,20.17]
[1720469735560,0.34,138.74,138.63,20.17]
[1720469735769,7.5478,138.74,138.64,0.17]
[1720469735978,0.34,138.74,138.64,0.17]
[1720469736553,1.80609579,138.74,138.58,100.0]
[1720469736756,7.2098,138.7,138.59,0.17]
[1720469736988,8.67589579,138.7,138.59,0.17]
[1720469737266,8.67739579,138.68,138.56,100.0]
[1720469737468,1.46609579,138.65,138.56,100.0]
[1720469737681,1.46609579,138.67,138.56,100.0]
[1720469737975,1.46609579,138.7,138.59,100.0]
[1720469738377,1.46609579,138.7,138.61,0.17]
[1720469738756,1.46609579,138.7,138.61,100.17]
[1720469738959,1.46609579,138.7,138.63,0.17]
[1720469739376,1.46609579,138.7,138.63,0.34]
[1720469739787,1.46609579,138.7,138.62,20.0]
[1720469739966,8.67619579,138.7,138.58,20.17]
[1720469740283,8.67619579,138.7,138.59,0.17]
[1720469741160,1.46609579,138.7,138.59,100.17]
[1720469741385,1.46609579,138.7,138.6,20.17]
[1720469741568,1.46609579,138.7,138.61,0.17]
[1720469741760,1.46609579,138.7,138.63,0.17]
[1720469741954,1.46609579,138.72,138.63,0.17]
[1720469742152,1.46609579,138.7,138.63,0.17]
[1720469742355,1.46609579,138.72,138.62,0.17]
[1720469743063,18.0156,138.77,138.62,0.17]
[1720469743064,1.46609579,138.7,138.62,0.17]
[1720469744061,1.46609579,138.7,138.62,21.89]
[1720469744273,1.46609579,138.7,138.64,0.17]
[1720469745388,1.46609579,138.7,138.62,20.0]
[1720469745593,1.46609579,138.7,138.58,120.0]
[1720469745798,1.46609579,138.7,138.61,100.0]
[1720469745972,1.46609579,138.7,138.62,20.0]
[1720469746169,1.46609579,138.7,138.62,120.0]
[1720469746478,1.46609579,138.7,138.62,20.0]
[1720469746684,1.46609579,138.7,138.63,0.34]
[1720469746872,1.46609579,138.7,138.63,0.17]
[1720469747188,1.46609579,138.7,138.62,20.34]
[1720469747377,1.46609579,138.68,138.62,20.34]
[1720469747696,7.2085,138.73,138.62,20.34]
[1720469747697,1.46609579,138.7,138.62,20.34]
[1720469747991,1.46609579,138.7,138.62,20.17]
[1720469748217,1.46609579,138.68,138.62,20.17]
[1720469748521,1.46609579,138.7,138.62,20.17]
[1720469749296,1.46609579,138.7,138.63,0.17]
[1720469751304,1.46609579,138.64,138.63,0.17]
[1720469751911,1.46609579,138.64,138.62,20.17]
[1720469751912,1.46609579,138.64,138.62,20.0]
[1720469752118,1.46609579,138.61,138.58,100.0]
[1720469752323,1.46609579,138.63,138.59,100.0]
[1720469752498,1.46609579,138.63,138.57,100.0]
[1720469752700,1.46609579,138.61,138.6,100.0]
[1720469753007,1.46609579,138.61,138.58,21.72]
[1720469753199,1.46609579,138.63,138.62,100.0]
[1720469753403,1.46609579,138.63,138.62,120.34]
[1720469753597,1.46609579,138.63,138.62,20.34]
[1720469754000,1.46609579,138.63,138.62,0.34]
[1720469754318,1.46609579,138.72,138.63,0.17]
[1720469754498,1.46609579,138.72,138.63,120.34]
[1720469754823,1.46609579,138.72,138.65,0.17]
[1720469755024,1.46609579,138.7,138.64,20.0]
[1720469755204,1.46609579,138.7,138.64,0.17]
[1720469755400,1.46609579,138.7,138.64,0.34]
[1720469755813,1.46609579,138.68,138.64,0.34]
[1720469756021,1.46609579,138.7,138.64,0.17]
[1720469756329,1.46609579,138.7,138.63,0.17]
[1720469757419,1.46609579,138.7,138.63,0.34]
[1720469758223,1.46609579,138.68,138.63,0.34]
[1720469758398,1.46609579,138.66,138.63,0.17]
[1720469758729,1.46609579,138.66,138.62,0.17]
[1720469759025,1.46609579,138.66,138.62,0.34]
[1720469759230,1.46609579,138.7,138.62,0.34]
[1720469759912,1.46609579,138.7,138.62,100.34]
[1720469760108,1.46609579,138.7,138.64,0.17]
[1720469760311,1.46609579,138.68,138.64,0.34]
[1720469761507,1.46609579,138.7,138.65,0.17]
[1720469761725,1.46609579,138.7,138.65,20.17]
[1720469761917,1.46609579,138.7,138.66,0.17]
[1720469762121,1.46609579,138.7,138.66,12.4831312]
[1720469762325,1.46609579,138.7,138.66,12.3131312]
[1720469762519,22.2769259,138.72,138.66,12.3131312]
[1720469762715,1.46609579,138.72,138.67,20.17]
[1720469762911,1.46609579,138.72,138.67,20.0]
[1720469764214,1.46609579,138.7,138.67,20.0]
[1720469764538,23.77392969,138.79,138.66,12.3131312]
[1720469764539,1.46609579,138.72,138.66,12.3131312]
[1720469764826,1.46609579,138.72,138.67,20.17]
[1720469765204,1.46609579,138.72,138.67,20.0]
[1720469765405,2.0005,138.79,138.66,12.3131312]
[1720469765406,1.46609579,138.69,138.66,12.3131312]
[1720469765809,1.46609579,138.78,138.67,20.17]
[1720469766129,1.46609579,138.78,138.66,12.3131312]
[1720469766130,1.46609579,138.67,138.66,12.3131312]
[1720469766308,2.0005,138.79,138.66,12.3131312]
[1720469766309,1.46609579,138.69,138.66,12.3131312]
[1720469767634,1.46609579,138.73,138.66,12.3131312]
[1720469768011,1.46609579,138.74,138.66,12.3131312]
[1720469768206,1.46609579,138.74,138.67,20.0]
[1720469768407,1.46609579,138.74,138.66,12.3131312]
[1720469768607,1.46609579,138.71,138.66,12.3131312]
[1720469768913,1.46609579,138.72,138.66,12.3131312]
[1720469769115,7.2092,138.71,138.66,12.3131312]
[1720469769515,1.46609579,138.67,138.66,12.3131312]
[1720469769728,8.67739579,138.67,138.66,12.3131312]
[1720469769914,8.84739579,138.67,138.66,12.3131312]
[1720469770112,9.01739579,138.67,138.66,12.3131312]
[1720469770335,9.01739579,138.67,138.66,3.94456116]
[1720469770739,29.83871502,138.67,138.66,3.94456116]
[1720469770943,56.4991331,138.67,138.66,3.94456116]
[1720469771129,52.38621922,138.67,138.66,9.098e-05]
[1720469771323,1.63609579,138.6,138.59,0.8597352]
[1720469771555,9.02109579,138.6,138.59,0.8597352]
[1720469771734,1.80609579,138.6,138.59,0.8597352]
[1720469772041,9.02109579,138.6,138.59,0.8597352]
[1720469772245,8.68109579,138.6,138.59,0.8597352]
[1720469772418,8.85109579,138.6,138.59,0.8597352]
[1720469772617,9.02109579,138.6,138.59,0.8597352]
[1720469773418,27.05859579,138.6,138.59,0.8597352]
[1720469774241,9.02109579,138.6,138.59,0.8597352]
[1720469774626,9.02109579,138.6,138.59,3.52e-05]
[1720469775028,9.79270415,138.6,138.59,3.52e-05]
[1720469776044,9.45270415,138.6,138.59,3.52e-05]
[1720469776841,1.46609579,138.46,138.45,0.8597352]
[1720469777034,1.46609579,138.46,138.45,8.0825352]
[1720469777446,1.46609579,138.46,138.45,28.0825352]
[1720469777742,1.46609579,138.46,138.45,8.0825352]
[1720469779060,1.46609579,138.5,138.49,7.2207]
[1720469779557,1.46609579,138.5,138.45,0.8597352]
[1720469779848,1.46609579,138.46,138.45,0.8597352]
[1720469780051,1.46609579,138.46,138.45,8.0825352]
[1720469780235,1.46609579,138.46,138.45,0.8597352]
[1720469780428,8.68839579,138.46,138.45,0.8597352]
[1720469780636,8.85839579,138.46,138.45,0.8597352]
[1720469780865,8.68839579,138.46,138.45,0.8597352]
[1720469781043,1.46609579,138.46,138.45,0.8597352]
[1720469782960,1.46609579,138.46,138.45,0.3597352]
[1720469783173,1.46609579,138.46,138.45,7.5825352]
[1720469783331,1.46609579,138.46,138.45,0.3597352]
[1720469784463,8.85839579,138.46,138.45,0.3597352]
[1720469784772,9.02839579,138.46,138.45,0.3597352]
[1720469785562,9.02839579,138.46,138.45,3.52e-05]
[1720469786967,9.80000415,138.46,138.45,3.52e-05]
[1720469787482,9.80000415,138.46,138.3,16.3392]
[1720469787483,1.46609579,138.32,138.3,16.3392]
[1720469787783,1.46609579,138.32,138.3,7.2306]
[1720469787958,1.46609579,138.32,138.24,6.1509]
[1720469789061,8.86569579,138.32,138.24,6.1509]
[1720469789266,9.03569579,138.32,138.24,6.1509]
[1720469789468,1.80609579,138.32,138.26,7.2322]
[1720469789667,9.03569579,138.32,138.21,15.0996]
[1720469789955,29.03569579,138.32,138.22,7.2347]
[1720469790186,29.03569579,138.32,138.23,7.2341]
[1720469790486,29.03569579,138.32,138.31,3.52e-05]
[1720469790854,9.03569579,138.32,138.31,3.52e-05]
[1720469791194,9.03569579,138.32,138.21,22.3349]
[1720469791195,1.46609579,138.22,138.21,22.3349]
[1720469791760,0.17,138.32,138.26,7.2322]
[1720469792083,0.17,138.32,138.21,15.0996]
[1720469792256,0.17,138.33,138.25,7.2327]
[1720469792459,33.2434,138.33,138.21,15.0996]
[1720469792777,20.0,138.32,138.17,0.8597352]
[1720469792954,7.2339,138.24,138.17,0.8597352]
[1720469793486,0.17,138.3,138.17,0.8597352]
[1720469793779,7.2333,138.25,138.19,7.2362]
[1720469793962,0.34,138.26,138.17,0.8597352]
[1720469794158,18.4219,138.26,138.17,0.8597352]
[1720469794366,7.2349,138.22,138.17,8.0971352]
[1720469795093,0.17,138.21,138.17,0.8597352]
[1720469795287,7.2354,138.21,138.17,0.8597352]
[1720469795659,7.2359,138.2,138.17,0.8597352]
[1720469796284,7.5755,138.21,138.17,0.8597352]
[1720469796582,0.17,138.22,138.17,0.8597352]
[1720469796783,0.34,138.22,138.17,0.8597352]
[1720469797163,7.2365,138.19,138.17,0.8597352]
[1720469797369,7.236,138.2,138.17,0.8597352]
[1720469797572,20.0,138.25,138.17,0.8597352]
[1720469797871,1.67041778,138.19,138.18,7.2369]
[1720469798168,1.67041778,138.19,138.17,8.0970352]
[1720469798378,1.67041778,138.19,138.17,0.8597352]
[1720469799469,8.90691778,138.19,138.17,0.8597352]
[1720469799682,1.67041778,138.19,138.17,0.8597352]
[1720469799885,7.5769,138.18,138.17,0.8597352]
[1720469800204,0.17,138.18,138.09,0.04290989]
[1720469800366,0.34,138.18,138.09,0.04290989]
[1720469800689,7.2389,138.15,138.09,7.28440989]
[1720469800892,1.67041778,138.14,138.11,7.2405]
[1720469801184,1.67041778,138.14,138.13,7.2395]
[1720469801689,7.2405,138.26,138.11,100.0]
[1720469801872,15.0,138.32,138.09,100.04290989]
[1720469801873,7.2339,138.24,138.09,100.04290989]
[1720469802193,7.2337,138.25,138.2,7.2357]
[1720469802488,18.0756,138.31,138.13,0.17]
[1720469802663,7.2328,138.26,138.21,7.2348]
[1720469802866,8.193314,138.3,138.13,20.34]
[1720469803290,7.2334,138.25,138.19,7.2359]
[1720469803490,18.0784,138.29,138.13,120.34]
[1720469803693,7.2334,138.25,138.2,7.2355]
[1720469803864,7.2339,138.24,138.18,7.2364]
[1720469804060,7.2348,138.23,138.13,20.34]
[1720469804290,7.2348,138.23,138.14,20.0]
[1720469804488,7.2348,138.23,138.12,20.0]
[1720469804801,0.34,138.22,138.14,7.2388]
[1720469805095,7.4065,138.19,138.09,0.04290989]
[1720469805276,0.17,138.22,138.09,0.04290989]
[1720469805589,0.17,138.23,138.18,7.2367]
[1720469805769,0.17,138.23,138.09,100.04290989]
[1720469805966,0.17,138.22,138.17,7.2369]
[1720469806294,7.2374,138.17,138.12,7.2399]
[1720469806482,7.2381,138.16,138.1,7.2406]
[1720469806672,7.2381,138.16,138.11,7.2405]
[1720469806866,0.17,138.18,138.13,7.2391]
[1720469807067,0.17,138.2,138.09,0.04290989]
[1720469807266,7.235,138.22,138.09,100.04290989]
[1720469807475,20.0,138.24,138.1,20.0]
[1720469807783,7.2302,138.31,138.25,7.2332]
[1720469807981,18.071,138.35,138.26,7.2323]
[1720469808175,18.071,138.35,138.17,0.17]
[1720469808176,19.02944283,138.35,138.17,0.17]
[1720469808374,29.001191,138.37,138.23,7.2339]
[1720469808375,7.2312,138.29,138.23,7.2339]
[1720469808694,7.2312,138.29,138.24,7.2336]
[1720469808895,18.0733,138.33,138.17,0.34]
[1720469809061,7.2306,138.3,138.25,7.2328]
[1720469809267,15.422214,138.34,138.28,7.2315]
[1720469809496,17.41139168,138.38,138.3,7.2305]
[1720469809795,7.2289,138.34,138.28,7.2312]
[1720469809990,7.2289,138.34,138.21,100.17]
[1720469809991,7.2281,138.35,138.24,0.17]
[1720469810171,17.41139168,138.38,138.29,7.2307]
[1720469810172,7.2287,138.34,138.29,7.2307]
[1720469810374,7.2292,138.33,138.28,7.2316]
[1720469810699,7.2292,138.33,138.21,100.17]
[1720469810700,7.2296,138.32,138.27,7.232]
[1720469810997,9.15175683,138.38,138.19,20.0]
[1720469810998,18.0707,138.35,138.19,20.0]
[1720469811167,18.0707,138.35,138.27,7.2321]
[1720469811491,7.3999,138.32,138.26,7.2326]
[1720469811696,0.17,138.32,138.2,0.17]
[1720469811984,18.2431,138.33,138.18,6.6153]
[1720469812192,0.17,138.3,138.25,7.2331]
[1720469812502,7.2305,138.31,138.18,6.6153]
[1720469812693,7.2308,138.3,138.24,7.2336]
[1720469812870,7.2308,138.3,138.25,7.2332]
[1720469813190,7.4002,138.31,138.25,7.2332]
[1720469813379,7.2307,138.3,138.25,7.2332]
[1720469813766,0.17,138.29,138.19,0.17]
[1720469813981,7.4012,138.29,138.19,20.34]
[1720469814194,20.17,138.28,138.18,6.6153]
[1720469814390,7.2347,138.23,138.18,6.6153]
[1720469814596,7.2347,138.23,138.18,13.8521]
[1720469814900,7.2339,138.24,138.18,13.8521]
[1720469815092,0.17,138.22,138.15,7.2379]
[1720469815393,0.17,138.2,138.1,6.0225]
[1720469815690,7.2367,138.19,138.14,7.2389]
[1720469816476,7.406,138.2,138.15,7.2384]
[1720469816879,7.2355,138.21,138.16,7.2378]
[1720469817085,7.2339,138.24,138.18,7.2365]